bitfinex/quotes_BTCUSD_20240905
["timestamp","ask_amount","ask_price","bid_price","bid_amount"]
[1725505624623,0.97642084,57530.0,57529.0,0.00934322]
[1725505624850,0.73306984,57530.0,57529.0,0.00934322]
[1725505625061,0.97642084,57530.0,57529.0,0.03475]
[1725505625561,1.02468075,57530.0,57529.0,0.03475]
[1725505625990,1.02468075,57530.0,57529.0,0.00934322]
[1725505626198,1.04768075,57530.0,57529.0,0.00934322]
[1725505627063,0.99942084,57530.0,57529.0,0.00934322]
[1725505627909,0.97642084,57530.0,57529.0,0.00934322]
[1725505628331,1.26803175,57530.0,57529.0,0.00934322]
[1725505628553,1.29103175,57530.0,57529.0,0.00934322]
[1725505628984,1.04768075,57530.0,57529.0,0.00934322]
[1725505629190,0.99942084,57530.0,57529.0,0.00934322]
[1725505630162,0.97642084,57530.0,57529.0,0.00934322]
[1725505630869,0.24636784,57530.0,57529.0,0.15184322]
[1725505631089,0.38971884,57530.0,57529.0,0.28525]
[1725505631354,0.492702,57530.0,57529.0,0.28525]
[1725505631600,0.006,57530.0,57529.0,0.45816517]
[1725505631862,0.243241,57556.0,57535.0,0.108]
[1725505632094,0.24327,57549.0,57537.0,0.108]
[1725505632333,0.12165,57542.0,57539.0,0.108]
[1725505632569,0.24322,57561.0,57541.0,0.108]
[1725505632843,0.121648,57543.0,57542.0,0.52838089]
[1725505633165,0.243277,57548.0,57544.0,0.1425]
[1725505633311,0.364944,57543.0,57542.0,0.02530897]
[1725505633544,0.364969,57539.0,57538.0,0.108]
[1725505634510,0.364969,57539.0,57538.0,0.15926162]
[1725505634753,0.364969,57539.0,57538.0,0.108]
[1725505635273,0.343282,57547.0,57539.0,0.138]
[1725505635526,0.001,57543.0,57542.0,0.006]
[1725505635779,0.02725401,57552.0,57542.0,0.75724088]
[1725505635780,0.243282,57547.0,57542.0,0.75724088]
[1725505636026,0.243225,57560.0,57545.0,0.1027589]
[1725505636281,0.121631,57551.0,57550.0,0.05137972]
[1725505636533,0.0272498,57562.0,57550.0,0.05137972]
[1725505636534,0.243248,57555.0,57550.0,0.2481]
[1725505636790,0.121631,57551.0,57550.0,0.2481]
[1725505637056,0.121631,57551.0,57550.0,0.63396089]
[1725505637057,0.364893,57551.0,57550.0,0.63396089]
[1725505637345,0.34099662,57566.0,57550.0,0.63396089]
[1725505637567,0.243244,57556.0,57555.0,0.07710995]
[1725505637790,0.608108,57556.0,57555.0,0.07710995]
[1725505638011,0.608112,57555.0,57554.0,0.07710995]
[1725505638197,0.608112,57555.0,57554.0,0.46296793]
[1725505638499,0.608112,57555.0,57554.0,0.05145965]
[1725505638500,1.094602,57555.0,57554.0,0.05145965]
[1725505638688,1.094602,57555.0,57553.0,0.05145965]
[1725505638689,0.608122,57554.0,57553.0,0.05145965]
[1725505638895,0.364881,57553.0,57552.0,0.05145965]
[1725505639102,0.851389,57553.0,57552.0,0.05145965]
[1725505639310,0.1,57554.0,57550.0,0.18988948]
[1725505639311,0.486524,57551.0,57550.0,0.1127]
[1725505639525,0.364893,57551.0,57550.0,0.49859124]
[1725505639760,0.364893,57551.0,57550.0,0.60140475]
[1725505639989,0.364893,57551.0,57550.0,0.49859124]
[1725505639990,0.608155,57551.0,57550.0,0.49859124]
[1725505640219,0.608155,57551.0,57550.0,0.60162427]
[1725505640436,0.851417,57551.0,57550.0,0.48902403]
[1725505640688,0.608207,57546.0,57545.0,0.1104]
[1725505640905,0.608207,57546.0,57545.0,0.57369617]
[1725505641336,0.608207,57546.0,57545.0,0.59947851]
[1725505641556,0.121641,57546.0,57545.0,0.59947851]
[1725505641768,0.24328401,57546.0,57545.0,0.49633544]
[1725505641999,0.36492501,57546.0,57545.0,0.49633544]
[1725505642209,0.59127804,57546.0,57545.0,0.5738021]
[1725505642426,0.83456104,57546.0,57545.0,0.49633544]
[1725505642648,0.59227804,57546.0,57545.0,0.1164]
[1725505643261,0.59227804,57546.0,57545.0,0.19393399]
[1725505643491,0.58727804,57546.0,57545.0,0.19393399]
[1725505643700,0.58727804,57546.0,57545.0,0.50232876]
[1725505643922,0.83056104,57546.0,57545.0,0.5799527]
[1725505644138,0.58727804,57546.0,57545.0,0.006]
[1725505644350,0.58727804,57546.0,57545.0,0.39193894]
[1725505645234,0.58727804,57546.0,57545.0,0.006]
[1725505645235,1.17384404,57546.0,57545.0,0.006]
[1725505645449,0.136,57539.0,57533.0,0.05184752]
[1725505645655,0.136,57539.0,57530.0,0.07777129]
[1725505645656,0.608367,57531.0,57530.0,0.05184752]
[1725505645857,0.951714,57531.0,57530.0,0.05184752]
[1725505646283,0.851728,57530.0,57529.0,0.06282474]
[1725505646466,0.951728,57530.0,57529.0,0.06282474]
[1725505647341,0.221675,57530.0,57529.0,0.01097722]
[1725505647545,0.121675,57530.0,57529.0,0.01097722]
[1725505647762,0.365026,57530.0,57529.0,0.22844851]
[1725505648012,0.243337,57534.0,57529.0,0.53669201]
[1725505648359,0.36502,57531.0,57530.0,0.1875937]
[1725505648360,0.121675,57530.0,57529.0,0.06284654]
[1725505648539,0.851728,57530.0,57529.0,0.01097722]
[1725505648906,1.153359,57530.0,57529.0,0.01097722]
[1725505649119,1.176359,57530.0,57529.0,0.01097722]
[1725505649940,1.153359,57530.0,57529.0,0.01097722]
[1725505651013,0.910008,57530.0,57529.0,0.01097722]
[1725505651446,0.666657,57530.0,57529.0,0.01097722]
[1725505651674,0.301631,57530.0,57529.0,0.26297722]
[1725505651875,0.423306,57530.0,57529.0,0.34019893]
[1725505652343,0.301631,57530.0,57529.0,0.34025452]
[1725505652550,0.666657,57530.0,57529.0,0.34025452]
[1725505652756,0.666657,57530.0,57529.0,0.28832961]
[1725505653016,0.666657,57530.0,57529.0,0.15242961]
[1725505653230,0.666657,57530.0,57529.0,0.03632961]
[1725505653231,0.910008,57530.0,57529.0,0.03632961]
[1725505653462,1.052208,57530.0,57529.0,0.01097722]
[1725505653670,1.152208,57530.0,57529.0,0.01097722]
[1725505653888,1.395559,57530.0,57529.0,0.01097722]
[1725505654754,1.394559,57530.0,57529.0,0.01097722]
[1725505654968,1.253359,57530.0,57529.0,0.01097722]
[1725505655179,1.277359,57530.0,57529.0,0.01097722]
[1725505655391,1.276359,57530.0,57529.0,0.01097722]
[1725505655606,1.277359,57530.0,57529.0,0.01097722]
[1725505656022,1.276359,57530.0,57529.0,0.01097722]
[1725505656226,1.51971,57530.0,57529.0,0.01097722]
[1725505656658,1.95628246,57530.0,57529.0,2.2e-07]
[1725505656877,2.00395841,57530.0,57529.0,2.2e-07]
[1725505657090,1.95628246,57530.0,57529.0,2.2e-07]
[1725505657301,1.98354697,57530.0,57529.0,2.2e-07]
[1725505657742,2.03122292,57530.0,57529.0,2.2e-07]
[1725505657944,2.05723165,57530.0,57529.0,2.2e-07]
[1725505658422,2.20194062,57524.0,57523.0,2.2e-07]
[1725505658638,2.20194062,57524.0,57501.0,0.63940515]
[1725505658639,0.747572,57502.0,57501.0,0.52650515]
[1725505658856,1.32900508,57502.0,57501.0,0.52650515]
[1725505659066,0.608685,57501.0,57492.0,0.00164]
[1725505659282,0.952159,57501.0,57492.0,0.00164]
[1725505659525,1.51978295,57501.0,57492.0,0.00164]
[1725505659755,1.78248295,57501.0,57492.0,0.00164]
[1725505660184,2.02595695,57501.0,57492.0,0.00164]
[1725505660399,0.01,57494.0,57492.0,0.00164]
[1725505660615,0.365293,57488.0,57478.0,0.00671629]
[1725505660853,0.96582427,57488.0,57478.0,0.00671629]
[1725505661087,1.55288227,57488.0,57478.0,0.00671629]
[1725505661302,1.81941127,57488.0,57478.0,0.00671629]
[1725505661535,0.852484,57479.0,57478.0,0.00671629]
[1725505661749,1.45441514,57479.0,57478.0,0.00671629]
[1725505661965,1.57741514,57479.0,57478.0,0.00671629]
[1725505662210,1.57741514,57479.0,57467.0,0.0363737]
[1725505662211,1.19364162,57468.0,57467.0,0.0363737]
[1725505662477,1.19364162,57468.0,57434.0,0.0115398]
[1725505662478,0.243753,57435.0,57434.0,0.0115398]
[1725505662694,0.609382,57435.0,57434.0,0.0115398]
[1725505662946,0.243688,57451.0,57435.0,0.1458]
[1725505663162,0.1,57467.0,57435.0,0.1458]
[1725505663163,0.1,57459.0,57445.0,0.002]
[1725505663381,0.1,57459.0,57444.0,0.1113]
[1725505663382,0.121855,57445.0,57444.0,0.1113]
[1725505663592,0.3879522,57445.0,57444.0,0.1113]
[1725505663905,0.3879522,57445.0,57442.0,0.00164]
[1725505663906,0.365578,57443.0,57442.0,0.00164]
[1725505664108,0.87570525,57443.0,57442.0,0.00164]
[1725505664314,1.06246456,57443.0,57442.0,0.00164]
[1725505665167,0.81874556,57443.0,57442.0,0.00164]
[1725505665611,0.02268925,57443.0,57442.0,0.00164]
[1725505666244,0.48554487,57443.0,57442.0,0.00164]
[1725505666446,0.36368587,57443.0,57442.0,0.00164]
[1725505666652,0.48554487,57443.0,57442.0,0.00164]
[1725505666853,0.72926387,57443.0,57442.0,0.00164]
[1725505667271,0.97298287,57443.0,57442.0,0.00164]
[1725505667474,1.07298287,57443.0,57442.0,0.00164]
[1725505667716,0.0785,57441.0,57415.0,0.01700874]
[1725505667932,0.0785,57441.0,57415.0,0.00700874]
[1725505667933,0.70672162,57420.0,57415.0,0.00700874]
[1725505668142,0.632542,57420.0,57415.0,0.00700874]
[1725505668367,0.121923,57413.0,57412.0,0.00335614]
[1725505668618,0.46577,57413.0,57412.0,0.00335614]
[1725505668850,0.73685458,57413.0,57412.0,0.02959078]
[1725505669064,0.98070158,57413.0,57412.0,0.00335614]
[1725505669283,1.44602789,57413.0,57412.0,0.00335614]
[1725505670208,1.44602789,57413.0,57400.0,0.31126]
[1725505670209,1.00434223,57401.0,57400.0,0.31126]
[1725505670438,1.13249004,57401.0,57400.0,0.31126]
[1725505670682,1.13249004,57401.0,57400.0,0.33758533]
[1725505670683,0.02814781,57401.0,57400.0,0.33758533]
[1725505670895,0.121949,57401.0,57400.0,0.45886]
[1725505671111,0.1,57407.0,57400.0,0.48518533]
[1725505671542,0.365847,57401.0,57400.0,0.33758533]
[1725505671757,0.609745,57401.0,57400.0,0.33758533]
[1725505672177,0.953643,57401.0,57400.0,0.33758533]
[1725505672610,1.03472231,57401.0,57400.0,0.33758533]
[1725505672822,1.03472231,57401.0,57400.0,0.31126]
[1725505673256,0.465847,57401.0,57400.0,0.33758533]
[1725505673466,0.709745,57401.0,57400.0,0.33758533]
[1725505673956,0.1,57401.0,57400.0,0.33758533]
[1725505674142,0.39459723,57414.0,57400.0,0.48338533]
[1725505674361,0.02731698,57420.0,57408.0,0.1184]
[1725505674572,0.02731698,57420.0,57411.0,0.243853]
[1725505674789,0.63837923,57429.0,57413.0,0.243845]
[1725505674790,0.52650515,57428.0,57413.0,0.243845]
[1725505675025,0.39459723,57423.0,57412.0,0.16193464]
[1725505675265,0.39459723,57423.0,57414.0,0.02621953]
[1725505675475,0.243809,57422.0,57413.0,0.14814909]
[1725505675685,0.243815,57421.0,57415.0,0.02621198]
[1725505675901,0.02731245,57435.0,57416.0,0.00348299]
[1725505676108,0.243804,57424.0,57416.0,0.02620442]
[1725505676335,0.02731245,57435.0,57416.0,0.02620442]
[1725505676336,0.121909,57420.0,57416.0,0.02620442]
[1725505676569,0.39459723,57430.0,57416.0,0.02620442]
[1725505676775,0.12191,57420.0,57416.0,0.02620442]
[1725505676990,0.243804,57423.0,57416.0,0.02120442]
[1725505677194,0.243792,57426.0,57416.0,0.02120442]
[1725505677404,0.39459723,57430.0,57415.0,0.259]
[1725505677637,0.121912,57419.0,57417.0,0.02569687]
[1725505677869,0.121912,57419.0,57415.0,0.259]
[1725505677870,0.121912,57419.0,57416.0,0.02570442]
[1725505678069,0.243814,57421.0,57415.0,0.259]
[1725505678282,0.121903,57423.0,57416.0,0.002]
[1725505678487,0.54650515,57445.0,57418.0,0.1128]
[1725505678488,0.05095732,57440.0,57418.0,0.1128]
[1725505678712,0.121882,57433.0,57423.0,0.121901]
[1725505678917,0.05095732,57440.0,57420.0,0.1128]
[1725505678918,0.05095732,57440.0,57424.0,0.02912625]
[1725505679156,0.000819,57443.0,57424.0,0.02912625]
[1725505679157,0.02730846,57442.0,57424.0,0.02912625]
[1725505679369,0.121896,57426.0,57424.0,0.02564399]
[1725505679570,0.07826578,57442.0,57424.0,0.02564399]
[1725505679777,0.24377,57431.0,57420.0,0.1148]
[1725505679993,0.243773,57431.0,57420.0,0.1148]
[1725505680209,0.243773,57431.0,57421.0,0.02566665]
[1725505680210,0.121894,57427.0,57421.0,0.02566665]
[1725505680412,0.12189,57429.0,57421.0,0.02566665]
[1725505680622,0.243791,57427.0,57421.0,0.02566665]
[1725505680843,0.76030923,57422.0,57421.0,0.02566665]
[1725505681054,0.121904,57422.0,57421.0,0.02566665]
[1725505681261,0.1,57426.0,57413.0,0.1128]
[1725505681476,0.365763,57414.0,57413.0,0.1128]
[1725505681889,0.365763,57414.0,57397.0,0.243912]
[1725505681890,0.05095732,57415.0,57406.0,0.2496]
[1725505682094,0.121936,57407.0,57406.0,0.2496]
[1725505682312,0.60968,57407.0,57406.0,0.2496]
[1725505682991,0.121936,57407.0,57406.0,0.2496]
[1725505683195,0.243852,57412.0,57406.0,0.2496]
[1725505683411,0.243828,57418.0,57407.0,0.0034836]
[1725505683618,0.365694,57425.0,57424.0,0.001638]
[1725505683829,0.70949,57425.0,57424.0,0.001638]
[1725505684096,0.78344732,57425.0,57424.0,0.001638]
[1725505684317,1.02724332,57425.0,57424.0,0.001638]
[1725505684748,1.27103932,57425.0,57424.0,0.001638]
[1725505684978,1.27103932,57425.0,57382.0,0.1106]
[1725505684979,0.121949,57401.0,57382.0,0.1106]
[1725505685190,1.42744023,57401.0,57382.0,0.1106]
[1725505685410,1.77133823,57401.0,57400.0,0.33666533]
[1725505685667,1.77133823,57401.0,57400.0,0.31126]
[1725505685880,1.79866274,57401.0,57400.0,0.31126]
[1725505686089,2.17781806,57401.0,57400.0,0.31126]
[1725505686302,2.26379806,57401.0,57400.0,0.31126]
[1725505686525,2.28579806,57401.0,57400.0,0.276417]
[1725505686744,0.121953,57399.0,57398.0,1.75892495]
[1725505686978,1.39562832,57399.0,57398.0,1.65439295]
[1725505687233,2.05473705,57399.0,57398.0,1.66949812]
[1725505687445,1.81083105,57399.0,57398.0,1.66949812]
[1725505688154,1.81083105,57399.0,57398.0,1.59981012]
[1725505688155,2.05473705,57399.0,57398.0,1.59981012]
[1725505688379,2.08089276,57399.0,57398.0,1.53012212]
[1725505688590,1.78869003,57399.0,57398.0,1.53012212]
[1725505688815,1.83698676,57399.0,57398.0,1.49527812]
[1725505689546,1.49296773,57399.0,57398.0,1.49527812]
[1725505689768,0.953671,57399.0,57398.0,1.49527812]
[1725505690267,0.853671,57399.0,57398.0,1.49527812]
[1725505690763,0.609765,57399.0,57398.0,1.49527812]
[1725505691164,0.36867996,57399.0,57398.0,1.49527812]
[1725505691376,0.61258596,57399.0,57398.0,1.49527812]
[1725505691818,0.85649196,57399.0,57398.0,1.49527812]
[1725505692031,0.95649196,57399.0,57398.0,1.49527812]
[1725505692493,1.27683633,57399.0,57398.0,1.49527812]
[1725505693375,1.25072518,57399.0,57398.0,1.49527812]
[1725505694003,1.25072518,57399.0,57398.0,0.74351118]
[1725505694004,2.04465288,57399.0,57398.0,0.74351118]
[1725505694228,2.32204961,57399.0,57398.0,0.74351118]
[1725505694448,1.15161918,57399.0,57398.0,0.74351118]
[1725505694698,1.39552518,57399.0,57398.0,0.74176287]
[1725505694910,1.94554688,57399.0,57398.0,0.74176287]
[1725505695324,2.18945288,57399.0,57398.0,0.67207487]
[1725505695539,2.23774961,57399.0,57398.0,0.67371287]
[1725505696245,2.23774961,57399.0,57396.0,2.4432]
[1725505696246,0.89344565,57399.0,57396.0,2.336554]
[1725505696467,0.853702,57397.0,57396.0,0.65916425]
[1725505696682,0.4158997,57396.0,57395.0,0.92600726]
[1725505696890,0.171961,57395.0,57394.0,2.3276]
[1725505697106,1.61423348,57395.0,57394.0,1.46715507]
[1725505697333,1.85086044,57395.0,57393.0,1.7774]
[1725505697552,1.353762,57393.0,57392.0,0.05908841]
[1725505697758,1.353762,57393.0,57391.0,0.97100049]
[1725505697759,0.365904,57392.0,57391.0,0.97100049]
[1725505697970,0.70984,57392.0,57391.0,0.97100049]
[1725505698184,1.23416974,57392.0,57391.0,0.72637854]
[1725505698401,1.33132356,57392.0,57391.0,0.21312214]
[1725505698626,0.69312365,57391.0,57390.0,1.75146582]
[1725505698834,1.28100365,57391.0,57390.0,1.57722082]
[1725505699464,1.52494365,57391.0,57390.0,1.55554087]
[1725505699737,2.46888365,57391.0,57390.0,1.52069187]
[1725505700001,1.93418774,57391.0,57390.0,1.38129587]
[1725505700209,1.93418774,57391.0,57390.0,0.60552893]
[1725505700417,2.11417783,57391.0,57390.0,0.60552893]
[1725505700622,2.18255757,57391.0,57390.0,0.57852893]
[1725505700828,2.22645953,57391.0,57390.0,0.39367155]
[1725505701050,2.22645953,57391.0,57390.0,0.36394077]
[1725505701271,2.14167,57391.0,57390.0,0.36394077]
[1725505701482,2.36493563,57391.0,57390.0,0.33235889]
[1725505701689,2.36831783,57391.0,57390.0,0.26750989]
[1725505701919,2.19275757,57391.0,57390.0,0.12811389]
[1725505702128,2.21575757,57391.0,57390.0,0.11747088]
[1725505702812,2.21575757,57391.0,57390.0,0.01292088]
[1725505703014,1.13863557,57390.0,57389.0,1.08732088]
[1725505703230,1.920748,57390.0,57389.0,1.07861296]
[1725505703432,2.164692,57390.0,57389.0,1.07861296]
[1725505703873,2.62621963,57390.0,57389.0,0.03042602]
[1725505704079,2.6671072,57390.0,57389.0,0.03042602]
[1725505704281,1.09777,57389.0,57388.0,1.51836116]
[1725505704489,1.93865757,57389.0,57388.0,1.51836116]
[1725505704697,2.42655557,57389.0,57388.0,1.48351116]
[1725505704910,2.5040626,57389.0,57388.0,1.41381116]
[1725505705145,2.42655557,57389.0,57388.0,1.34411116]
[1725505705331,2.385668,57389.0,57388.0,1.34411116]
[1725505705903,2.42655557,57389.0,57388.0,1.20471116]
[1725505706114,2.44955557,57389.0,57388.0,1.02716116]
[1725505706318,1.691741,57388.0,57387.0,0.39061941]
[1725505706523,0.621978,57387.0,57386.0,1.4463]
[1725505706696,1.25051751,57387.0,57386.0,1.00980559]
[1725505706873,2.71978954,57387.0,57386.0,0.14074859]
[1725505707078,0.65052751,57386.0,57385.0,1.0897]
[1725505707280,1.58154951,57386.0,57385.0,1.0809511]
[1725505707490,0.609915,57385.0,57384.0,2.090283]
[1725505707720,0.609915,57385.0,57384.0,1.80754174]
[1725505707721,2.37546681,57385.0,57384.0,1.80754174]
[1725505707955,0.365955,57384.0,57383.0,1.92599778]
[1725505708165,0.365955,57384.0,57383.0,1.70583811]
[1725505708166,1.05840808,57384.0,57383.0,1.70583811]
[1725505708381,1.219871,57383.0,57382.0,0.88813795]
[1725505708592,1.68888293,57383.0,57382.0,0.73181223]
[1725505708796,1.203923,57382.0,57381.0,1.0127]
[1725505709046,1.38143003,57382.0,57381.0,0.5594437]
[1725505709276,1.38143003,57382.0,57381.0,0.54020701]
[1725505709277,2.51794623,57382.0,57381.0,0.54020701]
[1725505709491,3.25857174,57382.0,57381.0,0.29048699]
[1725505709714,3.23816202,57382.0,57380.0,0.98015748]
[1725505709951,0.36598,57380.0,57379.0,2.81772856]
[1725505710194,1.76476318,57380.0,57379.0,2.51741401]
[1725505710435,0.365986,57379.0,57378.0,4.32605698]
[1725505710649,1.34623992,57379.0,57378.0,3.04221164]
[1725505710883,2.65621892,57379.0,57378.0,1.06114794]
[1725505711104,2.79051574,57379.0,57378.0,1.06114794]
[1725505711321,3.03450674,57379.0,57378.0,1.06114794]
[1725505711773,3.03450674,57379.0,57378.0,1.02629094]
[1725505712198,3.03450674,57379.0,57378.0,0.87205767]
[1725505712833,3.01892,57379.0,57378.0,0.69777267]
[1725505713467,3.05750674,57379.0,57378.0,0.69777267]
[1725505713676,3.05750674,57379.0,57378.0,0.66291567]
[1725505713930,3.10962781,57379.0,57378.0,0.59320167]
[1725505714162,3.10962781,57379.0,57378.0,0.50425078]
[1725505714366,3.10962781,57379.0,57377.0,3.5604]
[1725505714367,0.05212107,57378.0,57377.0,3.05183451]
[1725505714569,2.54229279,57378.0,57377.0,2.76988429]
[1725505714789,2.55535854,57378.0,57377.0,2.3260721]
[1725505714978,3.23895969,57378.0,57377.0,2.2435979]
[1725505715219,3.48295469,57378.0,57377.0,1.4918537]
[1725505715498,3.7987873,57378.0,57377.0,0.70913491]
[1725505715708,1.098,57377.0,57376.0,4.18977617]
[1725505715912,2.6095,57377.0,57376.0,3.32985216]
[1725505716125,2.68820599,57377.0,57376.0,2.59115524]
[1725505716373,2.68820599,57377.0,57376.0,2.56132524]
[1725505716593,2.52332566,57377.0,57376.0,2.56132524]
[1725505716823,2.98036103,57377.0,57376.0,2.56132524]
[1725505717039,2.98036103,57377.0,57376.0,2.45675124]
[1725505717253,2.98036103,57377.0,57376.0,2.38703524]
[1725505718088,2.73636103,57377.0,57376.0,2.40917667]
[1725505718300,2.7624585,57377.0,57376.0,2.40917667]
[1725505718529,2.7624585,57377.0,57376.0,2.55107667]
[1725505718753,2.3179585,57377.0,57376.0,2.55107667]
[1725505719442,2.5619585,57377.0,57376.0,2.55107667]
[1725505719665,2.3179585,57377.0,57376.0,2.55107667]
[1725505719893,2.36764073,57377.0,57376.0,2.55107667]
[1725505720103,2.36764073,57377.0,57376.0,2.55270867]
[1725505720326,2.46764073,57377.0,57376.0,2.54395959]
[1725505720576,2.81764073,57377.0,57376.0,2.40205959]
[1725505720783,3.06164073,57377.0,57376.0,2.39973862]
[1725505721196,3.08464073,57377.0,57376.0,2.39973862]
[1725505721447,3.84214073,57377.0,57376.0,2.09023627]
[1725505721651,3.84214073,57377.0,57376.0,1.36089956]
[1725505721652,5.94464073,57377.0,57376.0,1.36089956]
[1725505721909,5.94464073,57377.0,57376.0,0.43487172]
[1725505722124,1.001514,57376.0,57375.0,3.65893757]
[1725505722335,3.14971123,57376.0,57375.0,2.41767388]
[1725505722540,3.14971123,57376.0,57375.0,2.16827176]
[1725505722761,3.14971123,57376.0,57375.0,1.41125533]
[1725505722762,3.39371523,57376.0,57375.0,1.41125533]
[1725505722995,3.63771923,57376.0,57375.0,0.51362797]
[1725505723214,3.63771923,57376.0,57375.0,0.12025029]
[1725505723420,1.464049,57375.0,57374.0,2.52809387]
[1725505723636,2.158057,57375.0,57374.0,1.54915236]
[1725505723841,1.198036,57375.0,57374.0,1.54915236]
[1725505724062,2.142044,57375.0,57374.0,1.54915236]
[1725505724271,1.898036,57375.0,57374.0,1.54915236]
[1725505724683,2.142044,57375.0,57374.0,1.54915236]
[1725505725102,2.211994,57375.0,57374.0,1.54915236]
[1725505725504,2.26167623,57375.0,57374.0,1.54915236]
[1725505725723,1.89566423,57375.0,57374.0,1.54915236]
[1725505725960,2.04066823,57375.0,57374.0,1.09538766]
[1725505726159,3.23716186,57375.0,57374.0,1.02550113]
[1725505726371,3.27290322,57375.0,57374.0,0.76310777]
[1725505726614,3.23716186,57375.0,57374.0,0.72717574]
[1725505726821,3.23716186,57375.0,57374.0,0.39506238]
[1725505727023,3.51691122,57375.0,57374.0,0.29048238]
[1725505727230,1.32083822,57375.0,57373.0,3.68706902]
[1725505727436,2.75856222,57374.0,57373.0,3.66832705]
[1725505727644,2.96683286,57374.0,57373.0,3.64869747]
[1725505727863,2.92386823,57374.0,57373.0,3.61383747]
[1725505728066,3.16788023,57374.0,57373.0,3.47439747]
[1725505728249,3.1952272,57374.0,57373.0,3.47439747]
[1725505728486,3.4392392,57374.0,57373.0,3.47439747]
[1725505728735,3.83458212,57374.0,57373.0,3.43953747]
[1725505728944,3.1952272,57374.0,57373.0,3.43953747]
[1725505729162,2.53551297,57374.0,57373.0,3.43953747]
[1725505729392,2.76850097,57374.0,57373.0,3.43953747]
[1725505729818,2.66850097,57374.0,57373.0,3.45932925]
[1725505730019,2.91251297,57374.0,57373.0,3.45932925]
[1725505730948,3.4126832,57374.0,57373.0,3.13236014]
[1725505731159,3.21364783,57374.0,57373.0,3.13236014]
[1725505731368,2.8206832,57374.0,57373.0,3.13236014]
[1725505731583,2.76850097,57374.0,57373.0,3.24656014]
[1725505732233,2.66850097,57374.0,57373.0,3.24656014]
[1725505732457,2.66850097,57374.0,57373.0,3.24456014]
[1725505732904,2.641154,57374.0,57373.0,3.24456014]
[1725505733108,2.641154,57374.0,57373.0,3.4201204]
[1725505733543,2.641154,57374.0,57373.0,3.24619214]
[1725505733760,1.897142,57374.0,57373.0,3.24619214]
[1725505733981,1.65313,57374.0,57373.0,3.54149214]
[1725505734486,2.19333623,57374.0,57373.0,3.54149214]
[1725505734695,2.141154,57374.0,57373.0,3.54149214]
[1725505734956,1.897142,57374.0,57373.0,3.7170524]
[1725505735213,1.997142,57374.0,57373.0,3.7170524]
[1725505735670,2.241154,57374.0,57373.0,3.54149214]
[1725505736211,1.997142,57374.0,57373.0,3.54149214]
[1725505737654,2.241154,57374.0,57373.0,3.54149214]
[1725505737904,2.29013097,57374.0,57373.0,3.54149214]
[1725505738128,2.29013097,57374.0,57373.0,3.42729214]
[1725505738380,2.53414297,57374.0,57373.0,3.42729214]
[1725505738627,2.53414297,57374.0,57373.0,3.13199214]
[1725505739081,2.241154,57374.0,57373.0,3.13199214]
[1725505740047,2.26849901,57374.0,57373.0,3.13199214]
[1725505740472,2.02448701,57374.0,57373.0,3.13199214]
[1725505740683,2.26849901,57374.0,57373.0,3.13199214]
[1725505740918,2.02448701,57374.0,57373.0,3.11810523]
[1725505741127,1.997142,57374.0,57373.0,3.41340523]
[1725505741341,1.997142,57374.0,57373.0,3.78306549]
[1725505741572,2.241154,57374.0,57373.0,3.60750523]
[1725505742229,2.485166,57374.0,57373.0,3.60750523]
[1725505742484,2.53870063,57374.0,57373.0,2.65447654]
[1725505742702,3.19867726,57374.0,57373.0,1.52842389]
[1725505742971,3.47557726,57374.0,57373.0,1.32785016]
[1725505743176,3.47557726,57374.0,57373.0,1.06559301]
[1725505743398,4.08560926,57374.0,57373.0,1.00639301]
[1725505743599,4.11645641,57374.0,57373.0,0.53369536]
[1725505743844,4.31935612,57374.0,57373.0,0.36895976]
[1725505744081,4.35851415,57374.0,57373.0,0.33409976]
[1725505744295,1.84180126,57373.0,57372.0,1.07912291]
[1725505744507,3.39495899,57373.0,57372.0,0.29883542]
[1725505744785,0.639031,57372.0,57371.0,2.91220204]
[1725505745003,1.860126,57372.0,57371.0,1.80153438]
[1725505745210,2.20064626,57372.0,57371.0,1.28904288]
[1725505745425,2.44466726,57372.0,57371.0,0.55477452]
[1725505745661,0.122012,57371.0,57370.0,3.8258]
[1725505745878,1.5940781,57371.0,57370.0,3.651495]
[1725505746107,1.8381031,57371.0,57370.0,3.651495]
[1725505746321,2.3261531,57371.0,57370.0,3.640574]
[1725505746537,3.0261531,57371.0,57370.0,3.640574]
[1725505746758,3.29570887,57371.0,57370.0,3.605713]
[1725505747189,3.57030406,57371.0,57370.0,3.466269]
[1725505747430,3.53973387,57371.0,57370.0,3.466269]
[1725505747888,3.58957963,57371.0,57370.0,3.396547]
[1725505748327,3.58957963,57371.0,57370.0,3.291964]
[1725505748328,2.70783865,57371.0,57370.0,3.291964]
[1725505748749,2.70783865,57371.0,57370.0,3.187381]
[1725505748962,2.95186365,57371.0,57370.0,3.117659]
[1725505749191,3.27066252,57371.0,57370.0,2.7152631]
[1725505749393,6.73666515,57371.0,57370.0,1.90365548]
[1725505749627,6.73666515,57371.0,57370.0,1.5538065]
[1725505749852,6.73666515,57371.0,57370.0,1.15584848]
[1725505750062,6.73666515,57371.0,57370.0,0.97458501]
[1725505750063,7.29663026,57371.0,57370.0,0.97458501]
[1725505750284,7.29663026,57371.0,57370.0,0.93120501]
[1725505750494,7.29663026,57371.0,57370.0,0.23043337]
[1725505750715,7.29663026,57371.0,57370.0,0.17157239]
[1725505750923,7.29663026,57371.0,57370.0,0.04746046]
[1725505750924,7.34647602,57371.0,57370.0,0.04746046]
[1725505751137,7.34647602,57371.0,57369.0,5.41523]
[1725505751138,1.86534084,57370.0,57369.0,5.08168778]
[1725505751369,1.86534084,57370.0,57369.0,4.93528643]
[1725505751370,2.85746945,57370.0,57369.0,4.93528643]
[1725505751584,3.10149845,57370.0,57369.0,4.92676725]
[1725505751790,3.58955645,57370.0,57369.0,4.87954725]
[1725505752005,3.61691393,57370.0,57369.0,4.42085437]
[1725505752182,4.28201393,57370.0,57369.0,4.39685437]
[1725505752415,4.28201393,57370.0,57369.0,4.118446]
[1725505752671,4.28201393,57370.0,57369.0,4.08372396]
[1725505753112,4.24077302,57370.0,57369.0,3.59214759]
[1725505753342,3.73627302,57370.0,57369.0,3.59214759]
[1725505753559,3.61987039,57370.0,57369.0,3.59214759]
[1725505753812,2.74936852,57370.0,57369.0,3.41541559]
[1725505754019,2.72231459,57370.0,57369.0,3.38055359]
[1725505754429,2.82983952,57370.0,57369.0,3.38055359]
[1725505754649,3.02386852,57370.0,57369.0,3.38055359]
[1725505754856,3.02386852,57370.0,57369.0,3.31082959]
[1725505755478,3.02386852,57370.0,57369.0,3.20624359]